[Event "GCT Superbet Romania 2022"]
[Site "Bucharest"]
[Date "2022.05.13"]
[Round "8.2"]
[White "Nepomniachtchi, Ian"]
[Black "Aronian, Levon"]
[Result "1/2-1/2"]
[ECO "C54"]
[WhiteElo "2773"]
[BlackElo "2765"]
[Annotator "TA"]
[PlyCount "170"]
[EventDate "2022.05.05"]
[EventType "tourn"]
[EventCountry "ROU"]
[SourceTitle "playchess.com"]
[Source "ChessBase"]
[SourceQuality "1"]
[TimeControl "40/5400+30:1800+30"]

{[%evp 15,170,13,4,0,6,15,17,17,21,16,14,14,10,8,16,8,0,5,14,13,29,28,45,31,38,37,35,35,56,48,50,25,20,23,15,15,14,13,14,14,9,9,9,9,10,13,21,21,20,20,27,33,59,59,191,190,162,182,177,173,168,168,162,41,36,39,34,34,51,37,78,64,62,59,62,68,68,66,59,0,50,0,50,50,50,44,43,50,31,0,16,35,32,17,65,50,137,135,133,132,356,318,12818,11218,12823,12827,12825,12827,12003,12314,1808,706,221,131,124,121,124,58,1077,10472,669,1201,1503,520,12826,12827,12818,12826,12495,12644,12822,12641,5826,3291,1607,0,0,0,0,0,0,0,0,0,0,0,0,0,0,0,0,0,0,0,0,0,0]} 1. e4 {[%emt 0:00:02]} e5 {[%emt 0:00:07]} 2. Nf3 {[%emt 0:00:03]} Nc6 {[%emt 0:00:06]} 3. Bc4 {[%emt 0:04:20]} Bc5 {[%emt 0:00:19]} 4. c3 {[%emt 0:00:04]} Nf6 {[%emt 0:00:08]} 5. d3 {[%emt 0:00:03]} O-O {[%emt 0:00:14]} 6. O-O {[%emt 0:00:04]} d5 {[%emt 0:00:06]} 7. exd5 {[%emt 0:00:03]} Nxd5 {[%emt 0:00:06]} 8. Re1 {[%emt 0:00:04]} Bg4 {[%emt 0:00:09]} 9. Nbd2 {[%emt 0:00:04] C54: Giuoco Piano: 4 c3 Nf6, main lines with 5 d4 and 5 d3.} Nb6 {[%emt 0:00:10]} 10. h3 {[%emt 0:00:03]} Bh5 {[%emt 0:00:10]} 11. Bb3 $1 {[%emt 0:00:32][%mdl 4] outshines the older 11.Bb5.} Qxd3 {[%emt 0:00:08]} (11... Kh8 12. Ne4 Nd7 13. Bd5 Bb6 14. Ng3 Bxf3 15. Qxf3 f5 16. d4 f4 17. Ne4 exd4 18. Bxc6 bxc6 19. Bxf4 dxc3 20. bxc3 Ne5 21. Qg3 Nd3 22. Rad1 Nxe1 23. Rxd8 Raxd8 {1-0 (59) Nepomniachtchi,I (2784)-Aronian,L (2781) chess24.com INT 2020}) 12. Nxe5 {[%emt 0:00:11]} Qf5 {[%emt 0:00:05]} 13. Nef3 $1 {[%emt 0:00:05]} (13. Ndf3 $2 Nxe5 14. Rxe5 Qxe5 15. Nxe5 Bxd1 16. Bxd1 Rfe8 $19) 13... Rad8 {[%emt 0:00:06]} 14. Qe2 {[%emt 0:00:14]} Nd5 {[%emt 0:00:07]} 15. Qe4 {[%emt 0:07:58]} Qxe4 {[%emt 0:03:46]} 16. Nxe4 {[%emt 0:00:17] [#]} Be7 $146 {[%emt 0:07:25]} ({Predecessor:} 16... Bb6 17. Bg5 f6 18. Rad1 Bf7 19. Bc1 Nde7 20. Bc2 Rxd1 21. Rxd1 Rd8 22. Re1 Ng6 {1-0 (46) Vachier Lagrave,M (2774)-Jakovenko,D (2681) Khanty-Mansiysk 2019}) 17. Rd1 {[%emt 0:00:41]} Nf6 {[%emt 0:03:56]} 18. Nxf6+ {[%emt 0:00:31]} Bxf6 {[%emt 0:00:09]} 19. g4 {[%emt 0:00:21]} Rxd1+ {[%emt 0:04:35]} 20. Bxd1 {[%emt 0:00:47]} Bg6 {[%emt 0:00:06]} 21. Bf4 {[%emt 0:00:06]} Nb4 {[%emt 0:04:04]} 22. cxb4 {[%emt 0:11:15]} Bxb2 {[%emt 0:00:43] [#]} 23. Rc1 {[%emt 0:03:12]} Bxc1 {[%emt 0:00:38]} 24. Bxc1 {[%emt 0:00:05]} Rd8 {[%emt 0:01:58]} 25. Be2 {[%emt 0:12:48]} Bd3 {[%emt 0:00:31]} 26. Kf1 {[%emt 0:00:04]} Rd5 {[%emt 0:00:32]} 27. Be3 {[%emt 0:02:17]} a5 {[%emt 0:01:48]} 28. a3 $1 {[%emt 0:00:04][%cal Ba2a3,Ba3b4,Bb4b5,Bb5b6][%mdl 32]} axb4 {[%emt 0:00:54]} 29. axb4 {[%emt 0:00:02]} Bxe2+ {[%emt 0:00:56]} 30. Kxe2 {[%emt 0:00:01]} f6 {[%emt 0:00:09]} 31. Nd4 {[%emt 0:01:37]} Kf7 {[%emt 0:00:57]} 32. Kd3 {[%emt 0:00:42]} h5 {[%emt 0:01:00]} 33. Kc4 {[%emt 0:00:46]} c6 {[%emt 0:00:05]} 34. b5 {[%emt 0:00:41]} hxg4 {[%emt 0:00:10]} (34... Re5 $14) 35. hxg4 $18 {[%emt 0:00:04]} (35. bxc6 $6 bxc6 36. hxg4 Re5 $16) 35... Ke8 {[%emt 0:06:27]} 36. b6 {[%emt 0:04:06]} Kd7 {[%emt 0:00:11]} 37. Nb3 {[%emt 0:02:17]} Rd1 {[%emt 0:01:21]} 38. Nc5+ {[%emt 0:00:14]} Kc8 {[%emt 0:00:06]} 39. Bf4 {[%emt 0:00:44]} (39. Ne4 $18) 39... Rg1 $1 $14 {[%emt 0:09:51]} 40. Bg3 {[%emt 0:00:00]} Rc1+ $1 {[%emt 0:00:00]} 41. Kd4 {[%emt 0:01:47]} Rd1+ $1 {[%emt 0:11:08]} 42. Nd3 {[%emt 0:03:36]} Ra1 {[%emt 0:01:18]} 43. Bd6 {[%emt 0:10:20]} Ra6 {[%emt 0:11:52]} 44. Bf8 {[%emt 0:00:19] White is more active.} Ra4+ {[%emt 0:00:29]} 45. Bb4 {[%emt 0:00:23]} Ra6 {[%emt 0:00:04]} 46. Kc5 {[%emt 0:06:30]} Ra1 {[%emt 0:01:27]} 47. Kd4 {[%emt 0:01:19]} Ra6 $1 {[%emt 0:01:49]} 48. Bf8 {[%emt 0:01:14]} (48. Bc5 $5 {[%cal Rd4e4]}) 48... Ra4+ {[%emt 0:00:59]} 49. Nb4 $1 {[%emt 0:00:03]} Kd7 {[%emt 0:01:13]} 50. f3 {[%emt 0:01:04]} g6 {[%emt 0:03:02]} 51. Bc5 {[%emt 0:01:19]} Ke6 {[%emt 0:01:39]} 52. Kc4 {[%emt 0:02:00]} f5 {[%emt 0:01:34]} 53. g5 {[%emt 0:03:15] Threatens to win with f4.} f4 $1 {[%emt 0:00:07]} 54. Bd4 {[%emt 0:00:57]} Kd6 {[%emt 0:07:23]} (54... Kf5 $11 {might be stronger.}) 55. Bg7 {[%emt 0:00:31]} Kd7 {[%emt 0:10:02]} (55... Ra5 $14) 56. Be5 $16 {[%emt 0:02:49]} c5 {[%emt 0:05:31]} 57. Kxc5 {[%emt 0:00:32]} Ra3 {[%emt 0:00:10] Inhibits Nd3.} 58. Nd5 $1 {[%emt 0:02:31]} (58. Bxf4 Rxf3 59. Bd2 Rf2 $16) 58... Rxf3 $2 {[%emt 0:01:47]} (58... Ke6 59. Bc3 Rb3 60. Nxf4+ Kf7) 59. Nxf4 $18 {[%emt 0:00:24]} Rf1 {[%emt 0:08:43]} 60. Kd5 $1 {[%emt 0:00:12]} ({Less strong is} 60. Nxg6 Rf5 $16) 60... Rf3 {[%emt 0:05:14]} 61. Bc7 {[%emt 0:05:31]} ({Not} 61. Nxg6 Rf5 62. Nf4 Rxg5 $16) 61... Rg3 {[%emt 0:00:28]} 62. Ne6 $1 {[%emt 0:00:06]} Rg1 {[%emt 0:03:32]} 63. Nc5+ {[%emt 0:00:40]} (63. Be5 $142 Rb1 64. Nc5+ Kc8 65. Ke6) 63... Kc8 {[%emt 0:00:01]} 64. Ne4 {[%emt 0:00:07]} (64. Bf4 $18) 64... Rd1+ $16 {[%emt 0:02:27]} 65. Ke5 {[%emt 0:00:51]} Re1 {[%emt 0:00:07]} 66. Kf4 {[%emt 0:00:23]} ({White should try} 66. Bd6 $1 $16 {[%cal Rd6b4]}) 66... Kd7 $2 {[%emt 0:00:39][%mdl 8192]} (66... Rf1+ $14 67. Kg4 Rg1+ 68. Bg3 Rb1) 67. Nd6 $18 {[%emt 0:01:09]} Kc6 {[%emt 0:00:46] [#]} 68. Nc4 $1 {[%emt 0:01:19]} Rf1+ {[%emt 0:00:38]} 69. Ke4 {[%emt 0:00:22]} (69. Kg4 $142 {aiming for Ne5+.} Rg1+ 70. Kf4) 69... Re1+ {[%emt 0:03:11]} (69... Kd7 $142 70. Ne5+ Ke6 71. Nxg6 Re1+ 72. Kf4 Rg1) 70. Kd4 {[%emt 0:01:47]} Kb5 {[%emt 0:00:14]} 71. Nd6+ {[%emt 0:00:43]} Kc6 {[%emt 0:01:17] [#]} 72. Nf7 $1 {[%emt 0:00:39]} Kd7 {[%emt 0:02:05]} 73. Ne5+ {[%emt 0:03:25]} Ke6 {[%emt 0:00:02]} 74. Nxg6 {[%emt 0:00:17]} Kf5 {[%emt 0:00:04]} 75. Ne5 $2 {[%emt 0:01:34]} (75. Nh4+ $18 Kg4 76. Ng2 (76. g6 Kxh4 77. g7 Rg1 $11) 76... Rd1+ 77. Ke4 Kxg5 78. Be5) 75... Rd1+ $11 {[%emt 0:00:47] The position is equal.} 76. Kc5 {[%emt 0:01:53]} Kxg5 {[%emt 0:00:10]} 77. Nf7+ {[%emt 0:00:20]} Kf6 {[%emt 0:00:08]} 78. Nd6 {[%emt 0:00:04]} Rc1+ {[%emt 0:00:25]} 79. Kb5 {[%emt 0:00:16]} Rb1+ {[%emt 0:00:35]} 80. Ka4 {[%emt 0:00:13]} Ra1+ {[%emt 0:00:58]} 81. Kb3 {[%emt 0:01:07]} Ke6 {[%emt 0:02:32]} 82. Nxb7 {[%emt 0:00:09]} Rc1 $1 {[%emt 0:00:09] Inhibits Nc5+.} 83. Kb4 {[%emt 0:07:37]} Rxc7 $1 {[%emt 0:00:07]} 84. Nc5+ {[%emt 0:00:01]} Kd6 {[%emt 0:00:07]} 85. bxc7 {[%emt 0:00:01]} Kxc7 {[%emt 0:11:41] Blacks defense is rewarded with a draw.  Weighted Error Value: White=0.08 (flawless) /Black=0.09 (flawless)} 1/2-1/2

[Event "GCT Superbet Romania 2022"]
[Site "Bucharest"]
[Date "2022.05.13"]
[Round "8.3"]
[White "Vachier-Lagrave, Maxime"]
[Black "Deac, Bogdan-Daniel"]
[Result "1/2-1/2"]
[ECO "C42"]
[WhiteElo "2750"]
[BlackElo "2671"]
[Annotator "TA"]
[PlyCount "112"]
[EventDate "2022.05.05"]
[EventType "tourn"]
[EventCountry "ROU"]
[SourceTitle "playchess.com"]
[Source "ChessBase"]
[SourceQuality "1"]
[TimeControl "40/5400+30:1800+30"]

{[%evp 18,112,15,15,22,3,10,14,39,37,31,12,11,0,0,0,0,0,0,0,12,0,0,0,0,-4,0,0,12,13,4,-6,-8,-9,-4,-4,-7,-3,-3,-3,-3,-6,-2,-3,-4,-5,0,0,0,0,0,0,0,0,4,0,0,0,8,0,4,4,4,4,4,4,4,0,0,0,0,0,0,0,0,0,0,0,8,8,8,8,8,8,8,8,8,0,22,0,0,0,0,0,0,0,0]} 1. e4 {[%emt 0:00:01] Huzman,A} e5 {[%emt 0:00:15]} 2. Nf3 {[%emt 0:00:04]} Nf6 {[%emt 0:00:09]} 3. Nxe5 {[%emt 0:00:02]} d6 {[%emt 0:00:06]} 4. Nf3 {[%emt 0:00:03]} Nxe4 {[%emt 0:00:05]} 5. d4 {[%emt 0:00:05]} d5 {[%emt 0:00:06]} 6. Bd3 {[%emt 0:00:02]} Bd6 {[%emt 0:01:19]} 7. O-O {[%emt 0:00:15]} O-O {[%emt 0:00:03]} 8. c4 {[%emt 0:00:03]} c6 {[%emt 0:00:07]} 9. Re1 {[%emt 0:00:19]} Bf5 {[%emt 0:01:09]} 10. Qb3 {[%emt 0:00:05]} Qd7 $1 {[%emt 0:02:07][%mdl 4] outshines the older 10...Na6. C42: Petroff Defence: 3 Nxe5 and unusual White 3rd moves.} 11. Be3 {[%emt 0:00:09]} dxc4 {[%emt 0:12:53]} 12. Bxc4 {[%emt 0:00:08] [#]} Na6 $146 {[%emt 0:04:25]} ({Predecessor:} 12... Qc7 13. Nc3 Nxc3 14. bxc3 Nd7 15. h3 b5 16. Bf1 Nb6 17. Nd2 Rab8 18. c4 bxc4 19. Nxc4 Nxc4 20. Qxc4 Be4 {½-½ (20) Leko,P (2730)-Anand,V (2794) Leon 2001 CBM 084 [Huzman,A]}) 13. Ne5 {[%emt 0:27:14]} Qc7 {[%emt 0:25:09]} 14. Nc3 {[%emt 0:00:21]} Nxc3 {[%emt 0:02:38] The position is equal.} 15. bxc3 {[%emt 0:00:08]} ({Much worse is} 15. Qxc3 Bb4 16. Qb3 Bxe1 17. Rxe1 Rae8 $17) 15... b5 {[%emt 0:01:59]} 16. Bf1 {[%emt 0:11:15]} Nc5 $1 {[%emt 0:02:02]} 17. Qd1 {[%emt 0:01:40]} Be6 {[%emt 0:07:39]} 18. Bf4 {[%emt 0:03:27]} Nd7 {[%emt 0:02:12]} 19. Bd3 {[%emt 0:00:28]} Nxe5 {[%emt 0:09:45]} 20. dxe5 {[%emt 0:04:48]} Be7 {[%emt 0:01:42]} 21. Qf3 {[%emt 0:00:07]} Rad8 {[%emt 0:01:55]} 22. a4 {[%emt 0:04:30]} a6 {[%emt 0:03:54]} 23. h4 {[%emt 0:03:12]} Qc8 {[%emt 0:07:58]} 24. Be4 {[%emt 0:01:27]} Bd5 {[%emt 0:02:01]} 25. h5 {[%emt 0:03:11]} Qe6 {[%emt 0:02:26]} 26. Bxd5 {[%emt 0:01:34]} Rxd5 {[%emt 0:00:38]} 27. axb5 {[%emt 0:00:10]} axb5 {[%emt 0:00:04]} 28. Ra6 {[%emt 0:02:39]} h6 {[%emt 0:01:08]} 29. g3 {[%emt 0:04:39]} f6 {[%emt 0:06:24][%cal Rf6e5]} 30. Qe4 {[%emt 0:00:38]} fxe5 {[%emt 0:00:33]} 31. Bxe5 {[%emt 0:00:04]} Bc5 {[%emt 0:02:10]} 32. Bf4 {[%emt 0:00:44]} Qxe4 {[%emt 0:00:33]} 33. Rxe4 {[%emt 0:00:03]} Rxh5 {[%emt 0:00:39]} 34. Rxc6 {[%emt 0:00:09]} Rd5 {[%emt 0:00:13]} 35. Kg2 {[%emt 0:02:48]} Rf7 {[%emt 0:00:51]} 36. f3 {[%emt 0:04:28]} Be7 {[%emt 0:00:40]} 37. Rd4 {[%emt 0:07:32]} Rdf5 {[%emt 0:00:24]} 38. Rd7 {[%emt 0:01:21]} Bg5 {[%emt 0:00:31]} 39. Rc8+ {[%emt 0:00:21]} Kh7 {[%emt 0:00:20]} 40. Rxf7 {[%emt 0:00:00]} Rxf7 {[%emt 0:00:00]} 41. Bxg5 {[%emt 0:00:38]} hxg5 $11 {[%emt 0:00:09][%mdl 4096] Endgame KR-KR} 42. Rc5 {[%emt 0:00:05][%csl LRb5,LRg5]} g4 {[%emt 0:01:20]} 43. f4 {[%emt 0:00:10]} Rd7 {[%emt 0:02:23]} 44. Rh5+ {[%emt 0:00:37]} Kg8 {[%emt 0:00:07]} 45. Rxb5 {[%emt 0:00:02]} Rd2+ {[%emt 0:00:12]} 46. Kf1 {[%emt 0:00:04]} Rd3 {[%emt 0:00:37][%csl LRc3,LRg3]} 47. Kf2 {[%emt 0:00:02]} Rf3+ {[%emt 0:04:18]} 48. Kg2 {[%emt 0:00:07]} Rxc3 {[%emt 0:00:04]} 49. Rg5 {[%emt 0:00:02]} Rc2+ {[%emt 0:00:07]} 50. Kf1 {[%emt 0:00:06]} Kf7 {[%emt 0:00:09]} 51. Rxg4 {[%emt 0:00:02]} Rc5 {[%emt 0:01:48]} 52. Kg2 {[%emt 0:00:44]} g5 {[%emt 0:00:33]} 53. Rxg5 {[%emt 0:00:20]} Rxg5 {[%emt 0:00:01][%mdl 64] [#] Remove Defender} 54. fxg5 {[%emt 0:00:06] Threatening mate with Kf3.} Kg6 {[%emt 0:00:07]} 55. Kf2 {[%emt 0:00:02]} Kxg5 {[%emt 0:00:07]} 56. g4 {[%emt 0:00:04]} Kxg4 {[%emt 0:00:04] Weighted Error Value: White=0.02 (flawless) /Black=0.03 (flawless)} 1/2-1/2

[Event "GCT Superbet Romania 2022"]
[Site "Bucharest"]
[Date "2022.05.13"]
[Round "8.4"]
[White "Caruana, Fabiano"]
[Black "Rapport, Richard"]
[Result "1/2-1/2"]
[ECO "B45"]
[WhiteElo "2786"]
[BlackElo "2776"]
[Annotator "TA"]
[PlyCount "102"]
[EventDate "2022.05.05"]
[EventType "tourn"]
[EventCountry "ROU"]
[SourceTitle "playchess.com"]
[Source "ChessBase"]
[SourceQuality "1"]
[TimeControl "40/5400+30:1800+30"]

{[%evp 15,102,15,32,19,12,18,13,19,12,25,22,19,22,23,23,21,21,21,33,29,39,31,28,14,27,31,54,47,47,55,66,66,59,46,41,7,12,7,22,13,16,17,18,39,17,0,0,0,0,0,0,0,0,0,0,0,0,0,8,8,8,8,8,8,8,0,0,0,0,0,0,0,0,0,0,-6,-6,-8,12,12,12,12,12,12,12,12,12,-8,-8]} 1. e4 {[%emt 0:00:04]} c5 {[%emt 0:01:16]} 2. Nf3 {[%emt 0:00:49]} e6 {[%emt 0:00:26]} 3. d4 {[%emt 0:00:36]} cxd4 {[%emt 0:00:09]} 4. Nxd4 {[%emt 0:00:04]} Nf6 {[%emt 0:00:13]} 5. Nc3 {[%emt 0:00:06]} Nc6 {[%emt 0:00:08]} 6. Nxc6 {[%emt 0:00:26]} bxc6 {[%emt 0:00:11]} 7. e5 {[%emt 0:00:06]} Nd5 {[%emt 0:00:05]} 8. Ne4 {[%emt 0:00:08]} Bb7 {[%emt 0:00:10]} 9. c4 {[%emt 0:02:08] B45: Sicilian Four Knights.} Nb4 {[%emt 0:00:33]} 10. c5 {[%emt 0:02:13] aiming for Qb3.} Qb8 {[%emt 0:00:16]} 11. f4 {[%emt 0:00:40]} Ba6 {[%emt 0:00:13] Against Bc4} 12. Be2 {[%emt 0:00:29] [#]} Bxe2 $146 {[%emt 0:00:18]} ({Predecessor:} 12... Be7 13. O-O O-O 14. Bxa6 Nxa6 15. Be3 Qb4 16. Qc2 Nc7 17. a3 Qb7 18. Rad1 Nd5 {1-0 (29) Saric,I (2687)-Abasov,N (2630) Terme Catez 2022}) 13. Qxe2 {[%emt 0:00:04]} Qb5 {[%emt 0:00:13]} 14. Qxb5 {[%emt 0:06:05]} cxb5 {[%emt 0:00:04]} 15. Ke2 {[%emt 0:00:43]} Nd5 {[%emt 0:00:18]} 16. Bd2 {[%emt 0:19:55]} a5 {[%emt 0:00:15]} 17. Rhc1 {[%emt 0:09:52]} Be7 {[%emt 0:08:05]} 18. Nc3 {[%emt 0:03:45]} Nc7 {[%emt 0:17:23]} 19. Be3 {[%emt 0:05:59]} Ra6 {[%emt 0:18:18]} 20. a3 {[%emt 0:06:39]} f5 {[%emt 0:19:01]} 21. b4 {[%emt 0:01:57] Hoping for a4.} Kf7 {[%emt 0:02:31]} 22. Rd1 {[%emt 0:01:36]} axb4 {[%emt 0:02:42]} 23. axb4 {[%emt 0:00:05] [#] Black must now prevent Rxa6.} Rb8 {[%emt 0:03:49]} 24. Rxa6 {[%emt 0:33:07]} Nxa6 {[%emt 0:00:42]} 25. Rxd7 {[%emt 0:01:17] And now c6 would win.} Nxb4 {[%emt 0:02:39]} 26. Rc7 {[%emt 0:00:44]} Ke8 {[%emt 0:05:37]} 27. c6 {[%emt 0:01:03] Black should prevent Ba7.} Bd8 {[%emt 0:00:08]} 28. Rxg7 {[%emt 0:00:45] [#] Threatens to win with c7.} Nxc6 {[%emt 0:00:06]} 29. Rxh7 {[%emt 0:00:06]} b4 {[%emt 0:00:49]} 30. Na4 {[%emt 0:00:06] The position is equal.} b3 {[%emt 0:05:35]} 31. Nb2 {[%emt 0:00:04]} Nb4 {[%emt 0:01:49]} 32. Bd2 {[%emt 0:02:01]} Nd5 {[%emt 0:00:20]} 33. Kd3 {[%emt 0:01:08]} Be7 $1 {[%emt 0:03:28]} 34. Kc4 {[%emt 0:01:18]} Rb6 {[%emt 0:01:45]} 35. Ba5 {[%emt 0:01:18]} Rb7 {[%emt 0:04:32]} 36. Bd2 {[%emt 0:00:23]} Kf8 {[%emt 0:01:34]} 37. Rh3 {[%emt 0:00:21]} Nxf4 {[%emt 0:01:09]} 38. Bxf4 {[%emt 0:00:12]} Rb4+ {[%emt 0:00:03]} 39. Kc3 {[%emt 0:00:03]} Rxf4 {[%emt 0:00:04]} 40. Kxb3 $11 {[%emt 0:00:00][%mdl 4096] Endgame KRB-KRN} Rg4 {[%emt 0:00:00]} 41. Nd3 {[%emt 0:03:11]} Rxg2 {[%emt 0:08:06]} 42. Nf4 {[%emt 0:00:32][%csl LRe6,LRg2]} Rg4 {[%emt 0:00:34]} 43. Nxe6+ {[%emt 0:00:28]} Kf7 {[%emt 0:00:12]} 44. Nc7 {[%emt 0:00:45]} Bd8 {[%emt 0:01:21]} 45. e6+ {[%emt 0:04:03]} Kf6 {[%emt 0:00:26]} 46. Re3 {[%emt 0:01:07]} Bxc7 {[%emt 0:00:39]} 47. e7 {[%emt 0:00:04]} Rg8 {[%emt 0:00:04]} 48. e8=N+ {[%emt 0:00:07]} Rxe8 $1 {[%emt 0:00:05]} 49. Rxe8 {[%emt 0:00:03]} Bxh2 {[%emt 0:00:05]} 50. Rf8+ {[%emt 0:00:03]} Ke6 {[%emt 0:00:04]} 51. Rxf5 {[%emt 0:00:10]} Kxf5 {[%emt 0:27:27] Weighted Error Value: White=0.04 (flawless) /Black=0.03 (flawless)} 1/2-1/2

[Event "GCT Superbet Romania 2022"]
[Site "Bucharest"]
[Date "2022.05.13"]
[Round "8.5"]
[White "Mamedyarov, Shakhriyar"]
[Black "Dominguez Perez, Leinier"]
[Result "0-1"]
[ECO "D27"]
[WhiteElo "2770"]
[BlackElo "2753"]
[Annotator "TA"]
[PlyCount "86"]
[EventDate "2022.05.05"]
[EventType "tourn"]
[EventCountry "ROU"]
[SourceTitle "playchess.com"]
[Source "ChessBase"]
[SourceQuality "1"]
[TimeControl "40/5400+30:1800+30"]

{[%evp 21,86,26,23,23,22,10,5,9,5,0,0,12,4,0,12,14,12,0,11,0,0,0,0,-4,-2,-3,-9,-6,-5,-5,-5,-5,-6,-8,-7,-14,-9,-9,-11,-14,0,0,0,0,0,0,0,0,0,-12,-14,-11,-11,-91,0,0,0,0,0,-164,0,0,0,0,0,-332,-302]} 1. d4 {[%emt 0:00:03]} d5 {[%emt 0:00:06]} 2. c4 {[%emt 0:00:05]} dxc4 {[%emt 0:00:06]} 3. Nf3 {[%emt 0:00:06]} Nf6 {[%emt 0:00:06]} 4. e3 {[%emt 0:00:04]} e6 {[%emt 0:00:06]} 5. Bxc4 {[%emt 0:00:04]} a6 {[%emt 0:00:06]} 6. O-O {[%emt 0:00:06]} c5 {[%emt 0:00:04]} 7. b3 {[%emt 0:00:24]} b5 {[%emt 0:00:23]} 8. Be2 {[%emt 0:00:15]} Nbd7 {[%emt 0:00:22]} 9. Bb2 {[%emt 0:01:01]} Bb7 {[%emt 0:00:06]} 10. Nbd2 {[%emt 0:00:05]} Be7 {[%emt 0:00:12]} 11. a4 {[%emt 0:00:29]} b4 {[%emt 0:00:16]} 12. Rc1 {[%emt 0:01:00] D27: Queen's Gambit Accepted: Classical main line: 7 e4!? and 7 a4.} Rc8 {[%emt 0:00:07]} 13. Ne5 {[%emt 0:06:36]} cxd4 {[%emt 0:08:24] [#]} 14. Rxc8 $146 {[%emt 0:09:50] The position is equal.} ({Predecessor:} 14. Bxd4 Nxe5 15. Bxe5 O-O 16. Rxc8 Qxc8 17. Nc4 Ne4 18. Qc2 Rd8 19. Bf3 f5 20. Qb2 {1-0 (45) Kovalenko,I (2651)-Tomczak,M (2435) Szklarska Poreba 2021}) 14... Qxc8 {[%emt 0:00:06]} 15. Nxd7 {[%emt 0:00:04]} Nxd7 {[%emt 0:06:06]} 16. Bxd4 {[%emt 0:00:18]} O-O {[%emt 0:01:10]} 17. Qa1 {[%emt 0:08:26]} Bf6 {[%emt 0:01:06]} 18. Nc4 {[%emt 0:01:58]} Qc7 {[%emt 0:02:16]} 19. Rd1 {[%emt 0:01:41]} Bd5 {[%emt 0:39:39]} 20. Bxf6 {[%emt 0:09:56]} Nxf6 {[%emt 0:00:02]} 21. f3 {[%emt 0:00:05] Prevents Ne4.} Nd7 {[%emt 0:00:35]} 22. e4 {[%emt 0:06:55]} Bxc4 {[%emt 0:02:36]} 23. Bxc4 {[%emt 0:00:03]} a5 {[%emt 0:04:16]} 24. Qd4 {[%emt 0:00:57]} Ne5 {[%emt 0:00:09][%cal Bd7e5,Be5g6,Bg6f4,Bf4g2][%mdl 32]} 25. Be2 {[%emt 0:08:04]} h6 {[%emt 0:00:11]} 26. g3 {[%emt 0:03:04]} g5 {[%emt 0:10:41]} 27. Qe3 {[%emt 0:06:25]} Rc8 {[%emt 0:03:02]} 28. f4 {[%emt 0:01:39]} gxf4 {[%emt 0:01:53]} 29. gxf4 {[%emt 0:00:04]} Ng6 {[%emt 0:00:12]} 30. f5 {[%emt 0:00:36]} exf5 {[%emt 0:04:46]} 31. exf5 {[%emt 0:00:49]} Nf4 {[%emt 0:00:59]} 32. Bc4 {[%emt 0:02:33] Black must now prevent Rf1.} Kh7 {[%emt 0:10:21] Threatens to win with ...Rg8+.} 33. Qf3 {[%emt 0:04:15] aiming for Rf1.} Rg8+ {[%emt 0:00:53]} 34. Kh1 {[%emt 0:00:19]} h5 {[%emt 0:00:47]} 35. h3 {[%emt 0:03:15]} Rg5 {[%emt 0:02:25]} 36. Rf1 $1 {[%emt 0:06:44]} Ng2 $40 {[%emt 0:00:01][%mdl 128] Hoping for ...f6. Black attacks.} (36... Rxf5 $2 37. Bd3 Kh6 38. Bxf5 $18) 37. Qe4 {[%emt 0:00:52] [#]} (37. Bd5 $1 $11 Qd6 38. Bxf7) 37... Rg3 {[%emt 0:01:52]} ({Black should try} 37... Nh4 $1 $17 38. f6+ (38. Rf4 Qb6) 38... Kh6) 38. Rf3 $11 {[%emt 0:10:30] Inhibits Qg3.} Rxf3 $1 {[%emt 0:00:16]} 39. Qxf3 {[%emt 0:00:44]} Nf4 {[%emt 0:00:03]} 40. Qe4 $2 {[%emt 0:00:00]} (40. Qg3 $11) 40... Kg7 $2 {[%emt 0:00:00]} (40... Nxh3 $19 {( -> ...Nf2+)} 41. Qf3 (41. f6+ Kh6 $17) 41... Nf4 42. Bxf7 Kh6) 41. Qd4+ {[%emt 0:12:50]} f6 {[%emt 0:04:55]} 42. Qg1+ {[%emt 0:08:06]} Kh6 {[%emt 0:00:04] And now ...Qe5 would win.} 43. Qg8 $2 {[%emt 0:05:28][%mdl 8192]} (43. Qg3 $1 $11 {and White stays safe.}) 43... Qe5 {[%emt 0:02:58] Weighted Error Value: White=0.30/Black=0.10 (very precise)} 0-1